[Event "*** MasterClass Titled Tuesday Blitz"]
[Site "Chess.com"]
[Date "2017.12.05"]
[Round "5"]
[White "GeorgMeier"]
[Black "gmjoey1"]
[Result "1-0"]
[WhiteElo "2798"]
[BlackElo "2497"]
[TimeControl "180+2"]
[EndTime "15:17:20 PST"]
[Termination "GeorgMeier won by checkmate"]

1. Nf3 {[%clk 0:02:59.8]} 1... Nf6 {[%clk 0:03:00.5]} 2. g3 {[%clk 0:03:00.7]}
2... b6 {[%clk 0:03:00.3]} 3. Bg2 {[%clk 0:02:59.7]} 3... Bb7 {[%clk 0:03:01.6]}
4. c4 {[%clk 0:03:01.2]} 4... g6 {[%clk 0:03:02.6]} 5. b3 {[%clk 0:02:58.7]}
5... Bg7 {[%clk 0:03:02.9]} 6. Bb2 {[%clk 0:03:00.2]} 6... O-O {[%clk
0:03:04.1]} 7. Nc3 {[%clk 0:03:01.8]} 7... c5 {[%clk 0:03:03.8]} 8. O-O {[%clk
0:03:02.9]} 8... d6 {[%clk 0:03:04]} 9. e3 {[%clk 0:03:02.2]} 9... e5 {[%clk
0:02:49.4]} 10. d4 {[%clk 0:03:02.2]} 10... e4 {[%clk 0:02:40.4]} 11. Ng5 {[%clk
0:03:01.3]} 11... Re8 {[%clk 0:02:36.2]} 12. dxc5 {[%clk 0:02:42.3]} 12... h6
{[%clk 0:02:35]} 13. Nb5 {[%clk 0:01:55.6]} 13... hxg5 {[%clk 0:02:15.9]} 14.
Nxd6 {[%clk 0:01:56.5]} 14... Qe7 {[%clk 0:01:54.4]} 15. Nxe8 {[%clk 0:01:50.7]}
15... Qxe8 {[%clk 0:01:56.2]} 16. Qd6 {[%clk 0:01:47.6]} 16... Nh5 {[%clk
0:01:40.4]} 17. Bxg7 {[%clk 0:01:37.7]} 17... Nxg7 {[%clk 0:01:42.2]} 18. cxb6
{[%clk 0:01:32]} 18... Nc6 {[%clk 0:01:43.2]} 19. Qc7 {[%clk 0:01:23]} 19... Nd8
{[%clk 0:01:25.1]} 20. bxa7 {[%clk 0:01:12.7]} 20... Rxa7 {[%clk 0:01:17]} 21.
Rfd1 {[%clk 0:01:07.7]} 21... Nge6 {[%clk 0:01:17.3]} 22. Qe5 {[%clk 0:00:59.2]}
22... Qe7 {[%clk 0:01:08]} 23. Qd6 {[%clk 0:00:53.8]} 23... Qf6 {[%clk
0:01:06.3]} 24. a4 {[%clk 0:00:50.8]} 24... Ra8 {[%clk 0:01:04.6]} 25. a5 {[%clk
0:00:49.5]} 25... Nc6 {[%clk 0:01:03.1]} 26. a6 {[%clk 0:00:38.5]} 26... Rd8
{[%clk 0:01:03.1]} 27. Qa3 {[%clk 0:00:33.6]} 27... Ba8 {[%clk 0:01:03]} 28.
Rxd8+ {[%clk 0:00:30.8]} 28... Qxd8 {[%clk 0:01:04.8]} 29. b4 {[%clk 0:00:20.9]}
29... Ne5 {[%clk 0:01:05.1]} 30. Qc3 {[%clk 0:00:21.5]} 30... Nf3+ {[%clk
0:01:04.2]} 31. Bxf3 {[%clk 0:00:19.8]} 31... exf3 {[%clk 0:01:05.8]} 32. b5
{[%clk 0:00:20.3]} 32... Qd7 {[%clk 0:01:00.7]} 33. Kh1 {[%clk 0:00:15.9]} 33...
Nc5 {[%clk 0:00:59.4]} 34. Qe1 {[%clk 0:00:08.8]} 34... Ne4 {[%clk 0:00:58.4]}
35. b6 {[%clk 0:00:09.9]} 35... Qh3 {[%clk 0:00:57.4]} 36. Qg1 {[%clk
0:00:10.2]} 36... Bc6 {[%clk 0:00:54.3]} 37. b7 {[%clk 0:00:10.9]} 37... Nf6
{[%clk 0:00:19.4]} 38. b8=Q+ {[%clk 0:00:12]} 38... Kg7 {[%clk 0:00:21.2]} 39.
Qe5 {[%clk 0:00:13.4]} 39... Qd7 {[%clk 0:00:14.5]} 40. a7 {[%clk 0:00:13.9]}
40... Ba8 {[%clk 0:00:15.2]} 41. g4 {[%clk 0:00:14.1]} 41... Qc6 {[%clk
0:00:12.2]} 42. h3 {[%clk 0:00:15.2]} 42... Kh7 {[%clk 0:00:12.7]} 43. Rd1
{[%clk 0:00:16]} 43... Ne4 {[%clk 0:00:13.3]} 44. Rd8 {[%clk 0:00:16.4]} 44...
f6 {[%clk 0:00:13.7]} 45. Qe7+ {[%clk 0:00:16.8]} 45... Kh6 {[%clk 0:00:13.8]}
46. Rh8# {[%clk 0:00:18.7]} 1-0

[Event "*** MasterClass Titled Tuesday Blitz"]
[Site "Chess.com"]
[Date "2017.12.05"]
[Round "5"]
[White "Bryakin_Mikhail"]
[Black "michaelk123"]
[Result "1-0"]
[WhiteElo "2559"]
[BlackElo "2290"]
[TimeControl "180+2"]
[EndTime "15:17:22 PST"]
[Termination "Bryakin_Mikhail won by resignation"]

1. b3 {[%clk 0:02:15.7]} 1... e5 {[%clk 0:02:59.5]} 2. Bb2 {[%clk 0:02:16.5]}
2... Nc6 {[%clk 0:03:00.4]} 3. Nf3 {[%clk 0:02:17.3]} 3... e4 {[%clk 0:02:57.8]}
4. Nd4 {[%clk 0:02:18.1]} 4... Nf6 {[%clk 0:02:51.1]} 5. Nxc6 {[%clk 0:02:19.1]}
5... dxc6 {[%clk 0:02:51.9]} 6. e3 {[%clk 0:02:20.7]} 6... Be7 {[%clk
0:02:51.3]} 7. d3 {[%clk 0:02:21.6]} 7... O-O {[%clk 0:02:50.3]} 8. Nd2 {[%clk
0:02:20.8]} 8... Bg4 {[%clk 0:02:39.4]} 9. Be2 {[%clk 0:02:20.7]} 9... Bxe2
{[%clk 0:02:34.5]} 10. Qxe2 {[%clk 0:02:22.6]} 10... exd3 {[%clk 0:02:34]} 11.
cxd3 {[%clk 0:02:23.4]} 11... Qd7 {[%clk 0:02:34.4]} 12. d4 {[%clk 0:02:23.9]}
12... Rfe8 {[%clk 0:02:32.2]} 13. O-O {[%clk 0:02:24.4]} 13... a5 {[%clk
0:02:30.9]} 14. a3 {[%clk 0:02:18.6]} 14... Nd5 {[%clk 0:02:24.8]} 15. Rac1
{[%clk 0:02:10.7]} 15... Bf6 {[%clk 0:02:25.1]} 16. Qd3 {[%clk 0:02:09.2]} 16...
h5 {[%clk 0:02:16.3]} 17. Ne4 {[%clk 0:02:09.9]} 17... Be7 {[%clk 0:01:57.4]}
18. h3 {[%clk 0:02:00.8]} 18... Qf5 {[%clk 0:01:55]} 19. Nc5 {[%clk 0:01:58.7]}
19... Qxd3 {[%clk 0:01:52.4]} 20. Nxd3 {[%clk 0:02:00.6]} 20... Bd6 {[%clk
0:01:51.3]} 21. Rfe1 {[%clk 0:01:49.8]} 21... f5 {[%clk 0:01:50.9]} 22. Ne5
{[%clk 0:01:48.8]} 22... Bxe5 {[%clk 0:01:48.6]} 23. dxe5 {[%clk 0:01:50.7]}
23... Rad8 {[%clk 0:01:46.7]} 24. Red1 {[%clk 0:01:51.3]} 24... Re6 {[%clk
0:01:35.8]} 25. Rc4 {[%clk 0:01:51.7]} 25... Kf7 {[%clk 0:01:34.5]} 26. Rd3
{[%clk 0:01:33.9]} 26... Ke7 {[%clk 0:01:24.2]} 27. Kf1 {[%clk 0:01:34]} 27...
g5 {[%clk 0:01:20.6]} 28. h4 {[%clk 0:01:22.6]} 28... g4 {[%clk 0:01:19.9]} 29.
g3 {[%clk 0:01:20.6]} 29... b6 {[%clk 0:01:13.5]} 30. Ke2 {[%clk 0:01:21.2]}
30... c5 {[%clk 0:01:10.4]} 31. Rc1 {[%clk 0:01:17.1]} 31... Rd7 {[%clk
0:01:06.2]} 32. Rcd1 {[%clk 0:01:17.9]} 32... c6 {[%clk 0:01:06]} 33. Rc1 {[%clk
0:01:15]} 33... Rc7 {[%clk 0:01:04.9]} 34. Rc4 {[%clk 0:01:15.9]} 34... Rb7
{[%clk 0:01:05.2]} 35. e4 {[%clk 0:01:12.9]} 35... fxe4 {[%clk 0:00:54.4]} 36.
Rxe4 {[%clk 0:01:14.8]} 36... b5 {[%clk 0:00:55.1]} 37. Bc1 {[%clk 0:01:15.6]}
37... c4 {[%clk 0:00:50.6]} 38. bxc4 {[%clk 0:01:14]} 38... bxc4 {[%clk
0:00:49.9]} 39. Rxc4 {[%clk 0:01:10]} 39... Rxe5+ {[%clk 0:00:50.8]} 40. Kd1
{[%clk 0:01:06.1]} 40... Rd7 {[%clk 0:00:45]} 41. Bg5+ {[%clk 0:01:04.6]} 41...
Kf7 {[%clk 0:00:43.6]} 42. Rd2 {[%clk 0:00:57.8]} 42... Rf5 {[%clk 0:00:28.6]}
43. Rxc6 {[%clk 0:00:53]} 43... Rf3 {[%clk 0:00:28.5]} 44. Rc5 {[%clk 0:00:32]}
44... Nc3+ {[%clk 0:00:27.5]} 45. Rxc3 {[%clk 0:00:30.9]} 45... Rxc3 {[%clk
0:00:17.8]} 46. Rxd7+ {[%clk 0:00:31.1]} 46... Ke6 {[%clk 0:00:18.9]} 47. Rh7
{[%clk 0:00:31.7]} 47... Rxa3 {[%clk 0:00:17.8]} 48. Rxh5 {[%clk 0:00:32]} 48...
Ra1+ {[%clk 0:00:18.1]} 49. Ke2 {[%clk 0:00:33.2]} 49... a4 {[%clk 0:00:18.7]}
50. Bd2 {[%clk 0:00:32.6]} 50... a3 {[%clk 0:00:18.5]} 51. Ra5 {[%clk
0:00:33.6]} 51... a2 {[%clk 0:00:18.5]} 52. Be3 {[%clk 0:00:31.6]} 52... Kf6
{[%clk 0:00:17.6]} 53. Bd4+ {[%clk 0:00:32.6]} 1-0

[Event "*** MasterClass Titled Tuesday Blitz"]
[Site "Chess.com"]
[Date "2017.12.05"]
[Round "5"]
[White "penguingm1"]
[Black "Jumbo"]
[Result "1-0"]
[WhiteElo "2627"]
[BlackElo "2468"]
[TimeControl "180+2"]
[EndTime "15:17:26 PST"]
[Termination "penguingm1 won by resignation"]

1. d4 {[%clk 0:03:01.9]} 1... Nf6 {[%clk 0:03:00.4]} 2. c4 {[%clk 0:03:02]} 2...
e6 {[%clk 0:03:02]} 3. Nc3 {[%clk 0:03:03]} 3... Bb4 {[%clk 0:03:03.5]} 4. Qc2
{[%clk 0:03:04.1]} 4... O-O {[%clk 0:03:03.6]} 5. Nf3 {[%clk 0:03:05.5]} 5... b6
{[%clk 0:03:00.9]} 6. e4 {[%clk 0:03:06.6]} 6... d5 {[%clk 0:02:59.6]} 7. cxd5
{[%clk 0:03:07.7]} 7... exd5 {[%clk 0:03:00.7]} 8. e5 {[%clk 0:03:09.2]} 8...
Ne4 {[%clk 0:03:02]} 9. Bd3 {[%clk 0:03:10.4]} 9... f5 {[%clk 0:02:56]} 10. O-O
{[%clk 0:03:04.4]} 10... c6 {[%clk 0:02:47.4]} 11. Ne1 {[%clk 0:03:01.9]} 11...
Bxc3 {[%clk 0:02:40.8]} 12. bxc3 {[%clk 0:03:02.8]} 12... Ba6 {[%clk 0:02:41.6]}
13. f3 {[%clk 0:03:00.6]} 13... Ng5 {[%clk 0:02:41.3]} 14. Bxg5 {[%clk
0:02:34.8]} 14... Qxg5 {[%clk 0:02:41.2]} 15. f4 {[%clk 0:02:36.3]} 15... Qe7
{[%clk 0:02:33.8]} 16. c4 {[%clk 0:02:09.6]} 16... Qd7 {[%clk 0:02:32.9]} 17.
Rd1 {[%clk 0:02:04.5]} 17... dxc4 {[%clk 0:02:27.5]} 18. Bxc4+ {[%clk
0:02:03.5]} 18... Bxc4 {[%clk 0:02:29.1]} 19. Qxc4+ {[%clk 0:02:05.4]} 19... Qd5
{[%clk 0:02:30.5]} 20. Qxd5+ {[%clk 0:02:06.8]} 20... cxd5 {[%clk 0:02:31.8]}
21. Rc1 {[%clk 0:02:08.4]} 21... Na6 {[%clk 0:02:31.2]} 22. Nd3 {[%clk
0:02:08.2]} 22... Rfc8 {[%clk 0:02:30.5]} 23. Kf2 {[%clk 0:02:03.8]} 23... Rc4
{[%clk 0:02:30.8]} 24. Ke3 {[%clk 0:02:04.1]} 24... Rac8 {[%clk 0:02:32.2]} 25.
Kd2 {[%clk 0:01:51]} 25... Kf7 {[%clk 0:02:29.4]} 26. h3 {[%clk 0:01:49]} 26...
h5 {[%clk 0:02:29.4]} 27. g4 {[%clk 0:01:47.2]} 27... hxg4 {[%clk 0:02:27.7]}
28. hxg4 {[%clk 0:01:49.1]} 28... fxg4 {[%clk 0:02:28.8]} 29. f5 {[%clk
0:01:46.9]} 29... Rxc1 {[%clk 0:02:25.1]} 30. Nxc1 {[%clk 0:01:47.8]} 30... Nb4
{[%clk 0:02:23.3]} 31. a3 {[%clk 0:01:45.6]} 31... Nc2 {[%clk 0:02:23.1]} 32.
Rf4 {[%clk 0:01:42.9]} 32... g3 {[%clk 0:02:20.8]} 33. Ne2 {[%clk 0:01:40.6]}
33... Rc4 {[%clk 0:02:12.9]} 34. Rg4 {[%clk 0:01:37]} 34... g2 {[%clk
0:02:07.4]} 35. Kd3 {[%clk 0:01:23.6]} 35... Ne1+ {[%clk 0:02:04.7]} 36. Ke3
{[%clk 0:01:24.7]} 36... Rc2 {[%clk 0:02:01.2]} 37. Nf4 {[%clk 0:01:00.9]} 37...
Rc3+ {[%clk 0:01:46]} 38. Ke2 {[%clk 0:00:49.6]} 38... Rc4 {[%clk 0:00:24.5]}
39. e6+ {[%clk 0:00:22.8]} 39... Ke8 {[%clk 0:00:24.8]} 40. Kxe1 {[%clk
0:00:18.3]} 40... Rxd4 {[%clk 0:00:25]} 41. Kf2 {[%clk 0:00:19.4]} 41... Rd2+
{[%clk 0:00:22.7]} 42. Kg1 {[%clk 0:00:20.7]} 42... Rd4 {[%clk 0:00:17.9]} 43.
Kxg2 {[%clk 0:00:21.4]} 43... Ra4 {[%clk 0:00:18.9]} 44. Kf2 {[%clk 0:00:18.5]}
44... a5 {[%clk 0:00:16.7]} 45. Rh4 {[%clk 0:00:19.7]} 45... b5 {[%clk
0:00:12.8]} 46. Rh8+ {[%clk 0:00:20.8]} 46... Ke7 {[%clk 0:00:13.9]} 47. Ng6+
{[%clk 0:00:22.4]} 47... Kf6 {[%clk 0:00:14.8]} 48. e7 {[%clk 0:00:18.6]} 1-0

[Event "*** MasterClass Titled Tuesday Blitz"]
[Site "Chess.com"]
[Date "2017.12.05"]
[Round "5"]
[White "ENEASZ"]
[Black "Indianlad"]
[Result "0-1"]
[WhiteElo "2419"]
[BlackElo "2596"]
[TimeControl "180+2"]
[EndTime "15:17:50 PST"]
[Termination "Indianlad won by resignation"]

1. e4 {[%clk 0:03:01.9]} 1... e5 {[%clk 0:03:00.6]} 2. Nf3 {[%clk 0:03:02.5]}
2... Nc6 {[%clk 0:03:02.1]} 3. Bc4 {[%clk 0:03:03.6]} 3... Bc5 {[%clk
0:03:02.5]} 4. c3 {[%clk 0:03:04.8]} 4... Nf6 {[%clk 0:03:03]} 5. d4 {[%clk
0:03:06.3]} 5... exd4 {[%clk 0:03:03.7]} 6. O-O {[%clk 0:03:07.9]} 6... Nxe4
{[%clk 0:03:03.1]} 7. cxd4 {[%clk 0:03:08.9]} 7... d5 {[%clk 0:03:03.5]} 8. dxc5
{[%clk 0:03:10.1]} 8... dxc4 {[%clk 0:03:04.1]} 9. Qxd8+ {[%clk 0:03:12]} 9...
Kxd8 {[%clk 0:02:29.8]} 10. Rd1+ {[%clk 0:03:11.8]} 10... Bd7 {[%clk 0:02:26.9]}
11. Ng5 {[%clk 0:03:12.8]} 11... Nxg5 {[%clk 0:02:24.4]} 12. Bxg5+ {[%clk
0:03:14.7]} 12... Kc8 {[%clk 0:02:25.9]} 13. Na3 {[%clk 0:03:11.2]} 13... Be6
{[%clk 0:02:26.8]} 14. Rac1 {[%clk 0:02:56]} 14... Nb4 {[%clk 0:02:27.1]} 15.
Nxc4 {[%clk 0:02:24.6]} 15... Nxa2 {[%clk 0:02:25.3]} 16. Rc2 {[%clk 0:02:22.4]}
16... Nb4 {[%clk 0:02:24.7]} 17. Rcc1 {[%clk 0:02:20.1]} 17... Nc6 {[%clk
0:02:16.5]} 18. h3 {[%clk 0:02:13.4]} 18... a5 {[%clk 0:02:13.9]} 19. Na3 {[%clk
0:02:06.9]} 19... f6 {[%clk 0:02:10.5]} 20. Bf4 {[%clk 0:02:06.7]} 20... Rd8
{[%clk 0:01:43.9]} 21. Nb5 {[%clk 0:02:01.9]} 21... Ne5 {[%clk 0:01:45.1]} 22.
Rxd8+ {[%clk 0:01:29.3]} 22... Kxd8 {[%clk 0:01:47]} 23. Rd1+ {[%clk 0:01:31.2]}
23... Bd7 {[%clk 0:01:23.8]} 24. f3 {[%clk 0:01:10.8]} 24... a4 {[%clk 0:01:23]}
25. Bxe5 {[%clk 0:00:50.8]} 25... fxe5 {[%clk 0:01:23.1]} 26. Nc3 {[%clk
0:00:52.7]} 26... Ra5 {[%clk 0:01:05]} 27. Rd5 {[%clk 0:00:45.3]} 27... Kc8
{[%clk 0:01:04.6]} 28. Kf2 {[%clk 0:00:35.2]} 28... Bc6 {[%clk 0:00:51.6]} 29.
Rxe5 {[%clk 0:00:24.5]} 29... b6 {[%clk 0:00:53]} 30. Rg5 {[%clk 0:00:16.4]}
30... g6 {[%clk 0:00:48.4]} 31. Re5 {[%clk 0:00:17.3]} 31... Kd7 {[%clk
0:00:44.1]} 32. h4 {[%clk 0:00:15.4]} 32... a3 {[%clk 0:00:29.8]} 33. bxa3
{[%clk 0:00:15.5]} 33... Rxa3 {[%clk 0:00:31.7]} 34. Ne2 {[%clk 0:00:12.4]}
34... b5 {[%clk 0:00:30]} 35. h5 {[%clk 0:00:11]} 35... b4 {[%clk 0:00:27.2]}
36. h6 {[%clk 0:00:12]} 36... Rd3 {[%clk 0:00:26.7]} 37. Nf4 {[%clk 0:00:09.9]}
37... Rc3 {[%clk 0:00:27.6]} 38. Nxg6 {[%clk 0:00:06.1]} 38... b3 {[%clk
0:00:26.9]} 39. Nf8+ {[%clk 0:00:06.3]} 39... Kc8 {[%clk 0:00:27.7]} 40. Nxh7
{[%clk 0:00:08.2]} 40... b2 {[%clk 0:00:27.9]} 41. Re1 {[%clk 0:00:08.9]} 41...
Rc1 {[%clk 0:00:28.9]} 42. Re6 {[%clk 0:00:03.7]} 42... b1=Q {[%clk 0:00:27.8]}
43. Rxc6 {[%clk 0:00:04.9]} 43... Qxh7 {[%clk 0:00:28.8]} 44. g4 {[%clk
0:00:04.3]} 44... Qc2+ {[%clk 0:00:28]} 45. Kg3 {[%clk 0:00:04.7]} 45... Rg1+
{[%clk 0:00:29.5]} 46. Kh4 {[%clk 0:00:04.3]} 46... Qd2 {[%clk 0:00:30.2]} 47.
Kh5 {[%clk 0:00:03.1]} 47... Rh1+ {[%clk 0:00:30.9]} 48. Kg6 {[%clk 0:00:03.4]}
48... Rxh6+ {[%clk 0:00:31.4]} 49. Kg7 {[%clk 0:00:04.2]} 49... Qg5+ {[%clk
0:00:29]} 0-1

[Event "*** MasterClass Titled Tuesday Blitz"]
[Site "Chess.com"]
[Date "2017.12.05"]
[Round "5"]
[White "chidori_boruto"]
[Black "Dr_Nezard"]
[Result "1-0"]
[WhiteElo "2527"]
[BlackElo "2291"]
[TimeControl "180+2"]
[EndTime "15:17:51 PST"]
[Termination "chidori_boruto won by resignation"]

1. d4 {[%clk 0:03:01.9]} 1... Nf6 {[%clk 0:03:00]} 2. Nf3 {[%clk 0:03:02.8]}
2... g6 {[%clk 0:03:00.1]} 3. Bf4 {[%clk 0:03:03.7]} 3... Bg7 {[%clk 0:03:01.1]}
4. e3 {[%clk 0:03:05.3]} 4... O-O {[%clk 0:03:01.6]} 5. Be2 {[%clk 0:03:06.8]}
5... c5 {[%clk 0:03:00.2]} 6. c3 {[%clk 0:03:06.8]} 6... Qb6 {[%clk 0:03:01]} 7.
Qb3 {[%clk 0:03:06.7]} 7... d6 {[%clk 0:03:00.7]} 8. O-O {[%clk 0:03:07]} 8...
Be6 {[%clk 0:02:59.5]} 9. Qxb6 {[%clk 0:03:07.4]} 9... axb6 {[%clk 0:03:01.4]}
10. a3 {[%clk 0:03:08.4]} 10... Bd7 {[%clk 0:02:57.2]} 11. h3 {[%clk 0:03:08.1]}
11... Rc8 {[%clk 0:02:42.3]} 12. Nbd2 {[%clk 0:03:08]} 12... b5 {[%clk
0:02:40.1]} 13. Rfd1 {[%clk 0:03:00]} 13... b6 {[%clk 0:02:35.7]} 14. Bf1 {[%clk
0:02:35.8]} 14... Be8 {[%clk 0:02:34.7]} 15. g4 {[%clk 0:02:33.6]} 15... h6
{[%clk 0:02:32]} 16. Bg3 {[%clk 0:02:31.4]} 16... Ra7 {[%clk 0:02:26.9]} 17. e4
{[%clk 0:02:28.7]} 17... Bc6 {[%clk 0:01:51.9]} 18. Re1 {[%clk 0:02:19.7]} 18...
b4 {[%clk 0:01:45.6]} 19. axb4 {[%clk 0:01:53]} 19... Rxa1 {[%clk 0:01:44.7]}
20. Rxa1 {[%clk 0:01:54.9]} 20... Nxe4 {[%clk 0:01:39.8]} 21. Nxe4 {[%clk
0:01:51.3]} 21... Bxe4 {[%clk 0:01:41.7]} 22. Nd2 {[%clk 0:01:52.6]} 22... Bc6
{[%clk 0:01:26.9]} 23. dxc5 {[%clk 0:01:51.1]} 23... dxc5 {[%clk 0:01:23.8]} 24.
b5 {[%clk 0:01:45.9]} 24... Be8 {[%clk 0:01:17.1]} 25. Ra8 {[%clk 0:01:44.8]}
25... e5 {[%clk 0:01:15.6]} 26. Nc4 {[%clk 0:01:42.2]} 26... Rd8 {[%clk
0:00:51.4]} 27. Nxe5 {[%clk 0:01:36.5]} 27... Nc6 {[%clk 0:00:30.8]} 28. Rxd8
{[%clk 0:01:14.5]} 28... Nxd8 {[%clk 0:00:32.7]} 29. Nc4 {[%clk 0:01:12.4]}
29... Bxb5 {[%clk 0:00:31.2]} 30. Nxb6 {[%clk 0:01:12.7]} 30... Bc6 {[%clk
0:00:16.5]} 31. Bd6 {[%clk 0:01:04.9]} 31... Ne6 {[%clk 0:00:15]} 32. Bc4 {[%clk
0:01:03.2]} 32... Ng5 {[%clk 0:00:11.5]} 33. Bd5 {[%clk 0:00:55.6]} 33... Bxd5
{[%clk 0:00:09.7]} 34. Nxd5 {[%clk 0:00:57.5]} 34... Ne4 {[%clk 0:00:08.4]} 35.
Be7 {[%clk 0:00:48.9]} 35... Bf8 {[%clk 0:00:08]} 36. Bf6 {[%clk 0:00:43.8]}
36... Bd6 {[%clk 0:00:03.9]} 37. f3 {[%clk 0:00:42.2]} 37... Nd2 {[%clk
0:00:03.7]} 38. Kf2 {[%clk 0:00:39.7]} 38... Nc4 {[%clk 0:00:04.9]} 39. b3
{[%clk 0:00:38.5]} 39... Na5 {[%clk 0:00:06.1]} 40. b4 {[%clk 0:00:38.9]} 40...
cxb4 {[%clk 0:00:07.1]} 41. cxb4 {[%clk 0:00:39.8]} 41... Nb3 {[%clk 0:00:07.8]}
42. Ke3 {[%clk 0:00:37.2]} 42... Kf8 {[%clk 0:00:09]} 43. Kd3 {[%clk 0:00:37.1]}
43... Nc1+ {[%clk 0:00:08.9]} 44. Kd2 {[%clk 0:00:35.2]} 44... Nb3+ {[%clk
0:00:09]} 45. Kc2 {[%clk 0:00:36.3]} 45... Bxb4 {[%clk 0:00:07.6]} 46. Nxb4
{[%clk 0:00:31.7]} 46... Nc5 {[%clk 0:00:08.7]} 47. Nd5 {[%clk 0:00:32.7]} 47...
Nd7 {[%clk 0:00:09.7]} 48. Kd3 {[%clk 0:00:32.9]} 48... Ke8 {[%clk 0:00:08.3]}
49. h4 {[%clk 0:00:33.5]} 49... Nc5+ {[%clk 0:00:09.4]} 50. Ke3 {[%clk
0:00:33.2]} 50... Ne6 {[%clk 0:00:11.3]} 51. f4 {[%clk 0:00:29.9]} 51... Kd7
{[%clk 0:00:11.5]} 52. f5 {[%clk 0:00:28.6]} 52... gxf5 {[%clk 0:00:12.4]} 53.
gxf5 {[%clk 0:00:30.5]} 53... Nf8 {[%clk 0:00:11.8]} 54. Bg7 {[%clk 0:00:30.6]}
54... Nh7 {[%clk 0:00:12.6]} 55. Bxh6 {[%clk 0:00:31.4]} 55... Kd6 {[%clk
0:00:13.4]} 56. Ke4 {[%clk 0:00:32.7]} 56... Kc6 {[%clk 0:00:12.5]} 57. Bg7
{[%clk 0:00:33.4]} 57... Kd6 {[%clk 0:00:14.4]} 58. Nf6 {[%clk 0:00:34.4]} 58...
Nxf6+ {[%clk 0:00:13.4]} 59. Bxf6 {[%clk 0:00:36.3]} 1-0

[Event "*** MasterClass Titled Tuesday Blitz"]
[Site "Chess.com"]
[Date "2017.12.05"]
[Round "5"]
[White "jefferyx"]
[Black "Sam_ChessMood"]
[Result "1-0"]
[WhiteElo "2785"]
[BlackElo "2621"]
[TimeControl "180+2"]
[EndTime "15:17:54 PST"]
[Termination "jefferyx won by resignation"]

1. d4 {[%clk 0:03:01.9]} 1... d5 {[%clk 0:03:00.5]} 2. c4 {[%clk 0:03:02.7]}
2... c6 {[%clk 0:03:01.9]} 3. Nf3 {[%clk 0:03:04.1]} 3... Nf6 {[%clk 0:03:03.2]}
4. Qb3 {[%clk 0:03:05.3]} 4... e6 {[%clk 0:03:00.1]} 5. Bf4 {[%clk 0:03:03.4]}
5... a5 {[%clk 0:02:53.7]} 6. e3 {[%clk 0:03:02.9]} 6... a4 {[%clk 0:02:50.2]}
7. Qc2 {[%clk 0:03:03.4]} 7... a3 {[%clk 0:02:46.7]} 8. b3 {[%clk 0:02:37.7]}
8... Na6 {[%clk 0:02:46]} 9. Be2 {[%clk 0:02:38.6]} 9... Nb4 {[%clk 0:02:45.5]}
10. Qc1 {[%clk 0:02:39.7]} 10... Qa5 {[%clk 0:02:34.3]} 11. O-O {[%clk
0:02:40.4]} 11... Be7 {[%clk 0:02:27]} 12. Ne5 {[%clk 0:02:40.8]} 12... O-O
{[%clk 0:02:26.5]} 13. Nc3 {[%clk 0:02:42]} 13... Nd7 {[%clk 0:02:08.8]} 14.
Nxd7 {[%clk 0:02:42.9]} 14... Bxd7 {[%clk 0:02:09.6]} 15. c5 {[%clk 0:02:44.8]}
15... e5 {[%clk 0:01:22.3]} 16. Bxe5 {[%clk 0:02:44.3]} 16... Bf5 {[%clk
0:01:23.5]} 17. Qd2 {[%clk 0:02:31.9]} 17... Rfe8 {[%clk 0:01:13.2]} 18. Bf4
{[%clk 0:02:28.6]} 18... Bf6 {[%clk 0:01:07.3]} 19. Rac1 {[%clk 0:02:29.2]}
19... h6 {[%clk 0:01:01.4]} 20. Na4 {[%clk 0:02:29.9]} 20... Nd3 {[%clk
0:00:54]} 21. Qxa5 {[%clk 0:02:14.1]} 21... Rxa5 {[%clk 0:00:55.9]} 22. Bxd3
{[%clk 0:02:16]} 22... Bxd3 {[%clk 0:00:57]} 23. Rfd1 {[%clk 0:02:17.9]} 23...
Bf5 {[%clk 0:00:50.7]} 24. Bc7 {[%clk 0:01:53.7]} 24... Raa8 {[%clk 0:00:44.4]}
25. Nb6 {[%clk 0:01:54.5]} 25... Ra6 {[%clk 0:00:37.9]} 26. Rc3 {[%clk
0:01:54.9]} 26... g5 {[%clk 0:00:34.8]} 27. f3 {[%clk 0:01:52.3]} 27... h5
{[%clk 0:00:34.1]} 28. Kf2 {[%clk 0:01:53.3]} 28... Kg7 {[%clk 0:00:34.8]} 29.
Re1 {[%clk 0:01:36.3]} 29... Kg6 {[%clk 0:00:34.8]} 30. Re2 {[%clk 0:01:34.4]}
30... g4 {[%clk 0:00:33]} 31. Ke1 {[%clk 0:01:25]} 31... Bg5 {[%clk 0:00:26.2]}
32. Kd2 {[%clk 0:01:25.4]} 32... h4 {[%clk 0:00:15.5]} 33. fxg4 {[%clk
0:01:14.7]} 33... Bxg4 {[%clk 0:00:17.4]} 34. Rf2 {[%clk 0:01:16.6]} 34... Re4
{[%clk 0:00:17.5]} 35. Bf4 {[%clk 0:01:13.7]} 35... Bf6 {[%clk 0:00:17.6]} 36.
Rc1 {[%clk 0:01:10.1]} 36... Bg7 {[%clk 0:00:18.6]} 37. Rcf1 {[%clk 0:01:07]}
37... Be6 {[%clk 0:00:19.7]} 38. Na4 {[%clk 0:01:04.2]} 38... Bg4 {[%clk
0:00:10.6]} 39. h3 {[%clk 0:01:05.7]} 39... Bh5 {[%clk 0:00:10.3]} 40. Nb6
{[%clk 0:01:05.1]} 40... f6 {[%clk 0:00:08.7]} 41. Bc7 {[%clk 0:01:00.8]} 41...
Re6 {[%clk 0:00:06.1]} 42. Bd8 {[%clk 0:00:53.5]} 42... Ra7 {[%clk 0:00:04.4]}
43. Rf4 {[%clk 0:00:54.1]} 43... Bh6 {[%clk 0:00:03.8]} 44. Rxf6+ {[%clk
0:00:54.7]} 44... Rxf6 {[%clk 0:00:05.4]} 45. Rxf6+ {[%clk 0:00:56.4]} 45... Kg7
{[%clk 0:00:06.9]} 46. Rd6 {[%clk 0:00:57]} 46... Ra5 {[%clk 0:00:07.5]} 47.
Bxh4 {[%clk 0:00:57.6]} 47... Rb5 {[%clk 0:00:08.3]} 48. Bf6+ {[%clk 0:00:57.7]}
48... Kh7 {[%clk 0:00:09.1]} 49. Be5 {[%clk 0:00:59.6]} 49... Bg6 {[%clk
0:00:09.9]} 50. Rd7+ {[%clk 0:01:00.6]} 50... Kg8 {[%clk 0:00:10.8]} 51. Rxb7
{[%clk 0:01:01.7]} 51... Bb1 {[%clk 0:00:11.7]} 52. Ra7 {[%clk 0:01:01.8]} 52...
Bxa2 {[%clk 0:00:12.8]} 53. Rxa3 {[%clk 0:01:02.4]} 53... Bxb3 {[%clk
0:00:14.3]} 54. Ra8+ {[%clk 0:01:02.7]} 54... Kf7 {[%clk 0:00:14.9]} 55. Ra7+
{[%clk 0:01:04.1]} 55... Kg6 {[%clk 0:00:14.6]} 56. Rc7 {[%clk 0:01:01.6]} 56...
Ba2 {[%clk 0:00:15.6]} 57. Rxc6+ {[%clk 0:01:02.7]} 57... Kh7 {[%clk 0:00:17]}
58. Rc7+ {[%clk 0:01:03.5]} 58... Kg6 {[%clk 0:00:18.3]} 59. Bf4 {[%clk
0:00:47.4]} 59... Rb2+ {[%clk 0:00:19.3]} 60. Kc3 {[%clk 0:00:47.5]} 60... Rb3+
{[%clk 0:00:19]} 61. Kc2 {[%clk 0:00:47]} 61... Bxf4 {[%clk 0:00:18.1]} 62. exf4
{[%clk 0:00:48.9]} 62... Rg3 {[%clk 0:00:18.3]} 63. c6 {[%clk 0:00:46.3]} 63...
Rxg2+ {[%clk 0:00:18.8]} 64. Kc3 {[%clk 0:00:47.9]} 1-0